bitfinex/quotes_BTCUSD_20241103
["timestamp","ask_amount","ask_price","bid_price","bid_amount"]
[1730610913518,0.11024333,68690.0,68689.0,0.00562587]
[1730610914404,0.11106233,68690.0,68689.0,0.00562587]
[1730610915070,0.11106233,68690.0,68689.0,0.15120887]
[1730610916326,0.11006233,68690.0,68689.0,0.15120887]
[1730610916482,0.11006233,68690.0,68689.0,0.37123334]
[1730610916706,0.11006233,68690.0,68689.0,0.50462969]
[1730610916707,0.073619,68690.0,68689.0,0.50462969]
[1730610917759,0.08725481,68690.0,68689.0,0.51074501]
[1730610918173,0.08725481,68690.0,68689.0,0.51174501]
[1730610918577,0.08725481,68690.0,68689.0,0.51074501]
[1730610919014,0.08725481,68690.0,68689.0,0.51374501]
[1730610919430,0.08725512,68690.0,68689.0,0.51374501]
[1730610919659,0.073619,68690.0,68689.0,0.51374501]
[1730610919891,0.073619,68690.0,68689.0,0.51374424]
[1730610920081,0.08725369,68690.0,68689.0,0.51374424]
[1730610921806,0.08725384,68690.0,68689.0,0.51374427]
[1730610925310,0.08725384,68690.0,68689.0,0.50662969]
[1730610925740,0.08725384,68690.0,68689.0,0.51374184]
[1730610926414,0.08725384,68690.0,68689.0,0.50662969]
[1730610926614,0.08725384,68690.0,68689.0,0.51374162]
[1730610927260,0.08724785,68690.0,68689.0,0.51374137]
[1730610927892,0.08724785,68690.0,68689.0,0.61374137]
[1730610929390,0.08724785,68690.0,68689.0,0.48574137]
[1730610929601,0.08724785,68690.0,68689.0,0.47862969]
[1730610929799,0.08724785,68690.0,68689.0,0.48574069]
[1730610931122,0.073619,68690.0,68689.0,0.47862969]
[1730610931329,0.08724578,68690.0,68689.0,0.48574075]
[1730610936888,0.08724578,68690.0,68689.0,0.25420887]
[1730610937581,0.59035125,68690.0,68689.0,0.00862587]
[1730610937812,0.54092725,68690.0,68689.0,0.00562587]
[1730610938058,0.54092725,68690.0,68689.0,0.00762587]
[1730610938501,0.5845362,68690.0,68689.0,0.00762587]
[1730610938726,0.73036194,68690.0,68689.0,0.00562587]
[1730610938972,0.69493173,68690.0,68689.0,0.00562587]
[1730610939187,0.68675132,68690.0,68689.0,0.00562587]
[1730610939406,0.80898405,68690.0,68689.0,0.00562587]
[1730610939638,0.80898405,68690.0,68674.0,0.04272156]
[1730610939639,0.23423678,68675.0,68674.0,0.04272156]
[1730610939853,0.40016532,68675.0,68674.0,0.04272156]
[1730610940061,0.44378254,68675.0,68674.0,0.04272156]
[1730610940258,0.40016532,68675.0,68674.0,0.04272156]
[1730610940531,0.90981532,68675.0,68674.0,0.04272156]
[1730610941645,0.92381532,68675.0,68674.0,0.04272156]
[1730610941914,0.93781532,68675.0,68674.0,0.04372156]
[1730610942575,0.92381532,68675.0,68674.0,0.04372156]
[1730610942784,0.90238678,68675.0,68674.0,0.04372156]
[1730610943007,1.06956335,68675.0,68674.0,0.04272156]
[1730610943225,1.05556335,68675.0,68674.0,0.04272156]
[1730610943455,0.93773761,68675.0,68674.0,0.04372156]
[1730610943678,0.88838678,68675.0,68674.0,0.04372156]
[1730610943898,0.90971904,68675.0,68674.0,0.04272156]
[1730610944145,0.92371904,68675.0,68674.0,0.04272156]
[1730610944366,0.92371904,68675.0,68674.0,0.04372156]
[1730610944765,0.90971904,68675.0,68674.0,0.04272156]
[1730610945009,1.05554478,68675.0,68674.0,0.04272156]
[1730610945221,1.06954478,68675.0,68674.0,0.04372156]
[1730610945702,1.06951582,68675.0,68674.0,0.04372156]
[1730610946360,1.06951582,68675.0,68674.0,0.04272156]
[1730610946568,1.06751582,68675.0,68674.0,0.04272156]
[1730610946778,1.08151582,68675.0,68674.0,0.04372156]
[1730610946985,1.08351582,68675.0,68674.0,0.04372156]
[1730610947437,1.22931286,68675.0,68674.0,0.04372156]
[1730610947651,1.21331286,68675.0,68674.0,0.04272156]
[1730610947864,1.21331286,68675.0,68674.0,0.04435956]
[1730610948080,1.22731286,68675.0,68674.0,0.04535956]
[1730610948746,1.22931286,68675.0,68674.0,0.04535956]
[1730610949397,1.21331286,68675.0,68674.0,0.04435956]
[1730610949832,1.22731286,68675.0,68674.0,0.04535956]
[1730610950046,1.21571171,68675.0,68674.0,0.04535956]
[1730610950269,1.21527555,68675.0,68674.0,0.04435956]
[1730610950485,1.20127555,68675.0,68674.0,0.04435956]
[1730610950704,1.20127053,68675.0,68674.0,0.04435956]
[1730610950937,1.3304975,68675.0,68674.0,0.04535956]
[1730610951171,1.30789431,68675.0,68674.0,0.04535956]
[1730610951382,1.30789431,68675.0,68674.0,0.04435956]
[1730610951383,1.39389431,68675.0,68674.0,0.04435956]
[1730610952057,1.37989431,68675.0,68674.0,0.04435956]
[1730610952268,1.15544479,68675.0,68674.0,0.04435956]
[1730610952498,1.16944479,68675.0,68674.0,0.04435956]
[1730610952714,1.18344479,68675.0,68674.0,0.04535956]
[1730610953162,1.17804194,68675.0,68674.0,0.04435956]
[1730610953379,1.20127053,68675.0,68674.0,0.04435956]
[1730610953599,1.22727053,68675.0,68674.0,0.04535956]
[1730610953813,1.22725072,68675.0,68674.0,0.04535956]
[1730610954233,1.21325072,68675.0,68674.0,0.04435956]
[1730610954461,1.21525072,68675.0,68674.0,0.04435956]
[1730610954678,1.22925072,68675.0,68674.0,0.04535956]
[1730610954897,1.22925072,68675.0,68674.0,0.002638]
[1730610955787,1.15062694,68675.0,68674.0,0.002638]
[1730610955968,1.12262694,68675.0,68674.0,0.001638]
[1730610956233,1.13462694,68675.0,68674.0,0.002638]
[1730610956636,1.13662694,68675.0,68674.0,0.002638]
[1730610956881,1.15062694,68675.0,68674.0,0.002638]
[1730610957297,1.14862694,68675.0,68674.0,0.002638]
[1730610957518,1.15062694,68675.0,68674.0,0.002638]
[1730610959229,1.14862694,68675.0,68674.0,0.002638]
[1730610959889,1.0028012,68675.0,68674.0,0.002638]
[1730610960110,0.96956004,68675.0,68674.0,0.002638]
[1730610960323,1.00482306,68675.0,68674.0,0.002638]
[1730610960531,1.02742756,68675.0,68674.0,0.002638]
[1730610960773,0.96956004,68675.0,68674.0,0.002638]
[1730610960985,1.06764835,68675.0,68674.0,0.002638]
[1730610961849,1.04503917,68675.0,68674.0,0.002638]
[1730610967067,1.04516951,68675.0,68674.0,0.002638]
[1730610967493,0.157628,68668.0,68667.0,0.00164]
[1730610967702,0.70067866,68668.0,68667.0,0.00164]
[1730610967884,0.8465044,68668.0,68667.0,0.00164]
[1730610968146,0.70067866,68668.0,68667.0,0.00164]
[1730610968789,0.70067866,68668.0,68667.0,0.00264]
[1730610968790,0.71867866,68668.0,68667.0,0.00264]
[1730610970762,0.71876769,68668.0,68667.0,0.00264]
[1730610971259,0.72076769,68668.0,68667.0,0.00264]
[1730610971470,1.01239047,68668.0,68667.0,0.00264]
[1730610972369,1.09339047,68668.0,68667.0,0.00264]
[1730610972571,1.14069047,68668.0,68667.0,0.00264]
[1730610974549,1.1406913,68668.0,68667.0,0.00264]
[1730610974787,1.16253004,68668.0,68667.0,0.00264]
[1730610975002,1.10520078,68668.0,68667.0,0.00264]
[1730610975209,1.14068972,68668.0,68667.0,0.00264]
[1730610977776,1.21935795,68668.0,68667.0,0.00264]
[1730610982135,1.26273508,68668.0,68667.0,0.00264]
[1730610982354,1.26273973,68668.0,68667.0,0.00264]
[1730610982571,1.2629437,68668.0,68667.0,0.00264]
[1730610983207,1.2193626,68668.0,68667.0,0.00264]
[1730610984165,1.46256504,68668.0,68667.0,0.00264]
[1730610985242,1.48435559,68668.0,68667.0,0.00264]
[1730610986390,1.48435307,68668.0,68667.0,0.00264]
[1730610987235,1.48464948,68668.0,68667.0,0.00264]
[1730610990236,1.44915841,68668.0,68667.0,0.00264]
[1730610990423,1.48465413,68668.0,68667.0,0.00264]
[1730610990597,1.37549606,68668.0,68667.0,0.00264]
[1730610990795,1.29682783,68668.0,68667.0,0.00264]
[1730610991023,1.40599738,68668.0,68667.0,0.00264]
[1730610991221,1.29682783,68668.0,68667.0,0.00264]
[1730610994295,1.26133211,68668.0,68667.0,0.00264]
[1730610994539,1.29681739,68668.0,68667.0,0.00264]
[1730610995006,0.15763,68667.0,68666.0,1.97147418]
[1730610995241,0.64086939,68667.0,68666.0,1.97147418]
[1730610995471,1.15051939,68667.0,68666.0,1.97147418]
[1730610996435,1.19619215,68667.0,68666.0,1.97147418]
[1730610996697,1.27279215,68667.0,68666.0,1.97147418]
[1730610997405,1.35146038,68667.0,68666.0,1.97147418]
[1730610997629,1.44412861,68667.0,68666.0,1.97147418]
[1730610997866,1.45812861,68667.0,68666.0,1.97147418]
[1730610998315,1.45810777,68667.0,68666.0,1.97147418]
[1730610998801,1.45810704,68667.0,68666.0,1.97147418]
[1730610999269,1.44410704,68667.0,68666.0,1.97147418]
[1730610999706,1.45810704,68667.0,68666.0,1.97147418]
[1730610999948,1.45810704,68667.0,68666.0,1.88409618]
[1730611000167,1.45810704,68667.0,68666.0,1.82584418]
[1730611000415,1.44410704,68667.0,68666.0,1.82584418]
[1730611000859,1.45803649,68667.0,68666.0,1.82584418]
[1730611001970,1.58885062,68667.0,68666.0,1.79671818]
[1730611002193,1.55803649,68667.0,68666.0,1.68021418]
[1730611002415,1.68885062,68667.0,68666.0,1.68021418]
[1730611003091,1.55803649,68667.0,68666.0,1.68021418]
[1730611003985,1.47936826,68667.0,68666.0,1.68021418]
[1730611005308,1.47890856,68667.0,68666.0,1.68021418]
[1730611005727,1.44344485,68667.0,68666.0,1.68021418]
[1730611005907,1.4788508,68667.0,68666.0,1.68021418]
[1730611009300,1.47884729,68667.0,68666.0,1.68021418]
[1730611009749,1.44287809,68667.0,68666.0,1.68021418]
[1730611009954,1.47828088,68667.0,68666.0,1.68021418]
[1730611011463,1.35658088,68667.0,68666.0,1.68021418]
[1730611012122,1.35658088,68667.0,68666.0,1.64740713]
[1730611012988,1.35658398,68667.0,68666.0,1.64740713]
[1730611014429,1.35671237,68667.0,68666.0,1.64740713]
[1730611016487,1.10571951,68667.0,68666.0,1.64740713]
[1730611016603,1.14112373,68667.0,68666.0,1.64740713]
[1730611016807,1.01043043,68667.0,68666.0,1.64740713]
[1730611017244,1.0322191,68667.0,68666.0,1.64740713]
[1730611017452,1.14113655,68667.0,68666.0,1.64740713]
[1730611017698,1.28696229,68667.0,68666.0,1.64740713]
[1730611018910,1.30424484,68667.0,68666.0,1.64740713]
[1730611020283,1.26883825,68667.0,68666.0,1.64740713]
[1730611020482,1.30426071,68667.0,68666.0,1.64740713]
[1730611020863,1.31788749,68667.0,68666.0,1.64740713]
[1730611021088,1.30426347,68667.0,68666.0,1.64740713]
[1730611022413,1.34798123,68667.0,68666.0,1.64740713]
[1730611022823,1.19200133,68667.0,68666.0,1.64740713]
[1730611023457,1.19200133,68667.0,68666.0,1.60184182]
[1730611024301,1.148528,68667.0,68666.0,1.60184182]
[1730611024540,1.3044243,68667.0,68666.0,1.60184182]
[1730611025365,1.4044243,68667.0,68666.0,1.37127565]
[1730611025578,1.234528,68667.0,68666.0,1.37127565]
[1730611025828,1.220528,68667.0,68666.0,1.22564565]
[1730611026045,1.248528,68667.0,68666.0,1.22564565]
[1730611026692,1.24857753,68667.0,68666.0,1.22564565]
[1730611027524,1.24857753,68667.0,68666.0,1e-06]
[1730611028397,1.29211237,68667.0,68666.0,1e-06]
[1730611030200,1.29293237,68667.0,68666.0,1e-06]
[1730611030355,1.25745762,68667.0,68666.0,1e-06]
[1730611030663,1.44821574,68667.0,68666.0,1e-06]
[1730611033780,1.29293868,68667.0,68666.0,1e-06]
[1730611035707,0.007,68657.0,68656.0,0.001638]
[1730611035905,1.00591556,68657.0,68656.0,0.001638]
[1730611036152,1.1517413,68657.0,68656.0,0.001638]
[1730611037017,1.1517413,68657.0,68656.0,0.129338]
[1730611037018,1.08507307,68657.0,68656.0,0.129338]
[1730611037247,1.10107307,68657.0,68656.0,0.129338]
[1730611037814,0.95325739,68657.0,68656.0,0.129338]
[1730611038419,0.95525739,68657.0,68656.0,0.129338]
[1730611038949,1.03392562,68657.0,68656.0,0.001638]
[1730611039166,1.07748567,68657.0,68656.0,0.001638]
[1730611039371,1.22331263,68657.0,68656.0,0.001638]
[1730611040632,1.37893415,68657.0,68656.0,0.001638]
[1730611042160,1.36493415,68657.0,68656.0,0.001638]
[1730611042392,1.35093415,68657.0,68656.0,0.001638]
[1730611042597,1.36493415,68657.0,68656.0,0.001638]
[1730611042728,1.37893415,68657.0,68656.0,0.001638]
[1730611042942,1.45093415,68657.0,68656.0,0.001638]
[1730611043357,1.47893415,68657.0,68656.0,0.001638]
[1730611045493,1.46493415,68657.0,68656.0,0.001638]
[1730611045696,1.45093415,68657.0,68656.0,0.001638]
[1730611045840,1.46493415,68657.0,68656.0,0.001638]
[1730611046041,1.47893415,68657.0,68656.0,0.001638]
[1730611046253,1.45093415,68657.0,68656.0,0.001638]
[1730611046698,1.47890784,68657.0,68656.0,0.001638]
[1730611048315,1.4789108,68657.0,68656.0,0.001638]
[1730611049142,1.40024257,68657.0,68656.0,0.001638]
[1730611049555,1.4789108,68657.0,68656.0,0.001638]
[1730611050838,0.155672,68647.0,68646.0,0.0804]
[1730611051046,0.84658681,68647.0,68646.0,0.0804]
[1730611051241,1.00220833,68647.0,68646.0,0.0804]
[1730611052614,1.02124717,68647.0,68646.0,0.0804]
[1730611053727,1.02124717,68647.0,68646.0,0.128]
[1730611053728,0.71478977,68647.0,68646.0,0.128]
[1730611053926,0.71978977,68647.0,68646.0,0.128]
[1730611054132,0.76343358,68647.0,68646.0,0.12964]
[1730611054355,0.61276158,68647.0,68646.0,0.12964]
[1730611054571,0.71478977,68647.0,68646.0,0.12964]
[1730611055210,0.70481552,68647.0,68646.0,0.12964]
[1730611055414,0.70281552,68647.0,68646.0,0.12964]
[1730611055619,0.70281528,68647.0,68646.0,0.12964]
[1730611055822,0.70881528,68647.0,68646.0,0.12964]
[1730611057186,0.82524728,68647.0,68646.0,0.12964]
[1730611057386,0.82523228,68647.0,68646.0,0.12964]
[1730611057791,0.82523357,68647.0,68646.0,0.12964]
[1730611058772,0.82523015,68647.0,68646.0,0.12964]
[1730611060428,0.70879815,68647.0,68646.0,0.12964]
[1730611065844,0.70879815,68647.0,68646.0,0.15879]
[1730611066052,0.70879815,68647.0,68646.0,0.12964]
[1730611067965,0.73152949,68647.0,68646.0,0.12964]
[1730611068788,0.73151349,68647.0,68646.0,0.12964]
[1730611068995,0.87733923,68647.0,68646.0,0.12964]
[1730611069434,0.81914774,68647.0,68646.0,0.12964]
[1730611069632,0.87733543,68647.0,68646.0,0.12964]
[1730611069850,0.85460586,68647.0,68646.0,0.12964]
[1730611073099,0.85462132,68647.0,68646.0,0.12964]
[1730611076726,0.8546368,68647.0,68646.0,0.12964]
[1730611077870,0.8546368,68647.0,68646.0,0.08204]
[1730611078089,0.89829911,68647.0,68646.0,0.00164]
[1730611078539,0.8546368,68647.0,68646.0,0.00164]
[1730611080189,0.81914774,68647.0,68646.0,0.00164]
[1730611080435,0.85464916,68647.0,68646.0,0.00164]
[1730611080648,0.8546522,68647.0,68646.0,0.00164]
[1730611081581,0.8486522,68647.0,68646.0,0.00164]
[1730611082251,0.8496522,68647.0,68646.0,0.00164]
[1730611082474,0.8586522,68647.0,68646.0,0.00164]
[1730611084492,0.85866296,68647.0,68646.0,0.00164]
[1730611086163,0.84500326,68647.0,68646.0,0.00164]
[1730611086381,0.8586593,68647.0,68646.0,0.00164]
[1730611086643,1.09551874,68647.0,68646.0,0.00164]
[1730611087097,1.18284657,68647.0,68646.0,0.00164]
[1730611087570,1.32064361,68647.0,68646.0,0.00164]
[1730611087793,1.23131578,68647.0,68646.0,0.00164]
[1730611088022,1.24031578,68647.0,68646.0,0.00164]
[1730611088244,1.24081872,68647.0,68646.0,0.00164]
[1730611089134,1.23181872,68647.0,68646.0,0.00164]
[1730611089352,1.24181872,68647.0,68646.0,0.00164]
[1730611091428,1.16315049,68647.0,68646.0,0.00164]
[1730611093734,1.15315049,68647.0,68646.0,0.00164]
[1730611093959,1.15615049,68647.0,68646.0,0.00164]
[1730611094447,1.16715049,68647.0,68646.0,0.00164]
[1730611096770,1.13163893,68647.0,68646.0,0.00164]
[1730611096996,1.16712984,68647.0,68646.0,0.00164]
[1730611097211,1.1671298,68647.0,68646.0,0.00164]
[1730611097428,1.16712977,68647.0,68646.0,0.00164]
[1730611099486,1.27628366,68647.0,68646.0,0.00164]
[1730611099720,1.16712977,68647.0,68646.0,0.00164]
[1730611100195,1.27628366,68647.0,68646.0,0.00164]
[1730611100660,1.16712977,68647.0,68646.0,0.00164]
[1730611102192,1.16732733,68647.0,68646.0,0.00164]
[1730611102890,1.38279556,68647.0,68646.0,0.00164]
[1730611103599,1.25099556,68647.0,68646.0,0.00164]
[1730611105894,1.25299556,68647.0,68646.0,0.00164]
[1730611106646,1.30049556,68647.0,68646.0,0.00164]
[1730611107561,1.28949556,68647.0,68646.0,0.00164]
[1730611108019,1.30349556,68647.0,68646.0,0.00164]
[1730611109133,1.29150083,68647.0,68646.0,0.00164]
[1730611109391,1.30550083,68647.0,68646.0,0.00164]
[1730611109824,1.38780083,68647.0,68646.0,0.00164]
[1730611111223,1.35230472,68647.0,68646.0,0.00164]
[1730611111459,1.38697237,68647.0,68646.0,0.00164]
[1730611114847,1.5656406,68647.0,68646.0,0.00164]
[1730611115058,1.5656406,68647.0,68627.0,0.22066247]
[1730611115059,0.150713,68628.0,68627.0,0.22066247]
[1730611115292,0.80642563,68628.0,68627.0,0.22066247]
[1730611115538,0.80642563,68628.0,68627.0,0.001638]
[1730611115539,0.82917997,68628.0,68627.0,0.001638]
[1730611115752,1.0328909,68628.0,68627.0,0.001638]
[1730611116006,1.11204492,68628.0,68627.0,0.001638]
[1730611116222,1.24184492,68628.0,68627.0,0.001638]
[1730611116440,1.32911052,68628.0,68627.0,0.001638]
[1730611116924,1.15754492,68628.0,68627.0,0.001638]
[1730611117224,1.16454492,68628.0,68627.0,0.001638]
[1730611117551,1.02465002,68628.0,68627.0,0.001638]
[1730611117767,1.03265002,68628.0,68627.0,0.001638]
[1730611118024,0.9220872,68628.0,68627.0,0.001638]
[1730611118460,0.85665985,68628.0,68627.0,0.001638]
[1730611118693,0.84959154,68628.0,68627.0,0.001638]
[1730611119161,0.7464027,68628.0,68627.0,0.001638]
[1730611119421,0.85862024,68628.0,68627.0,0.001638]
[1730611119652,0.84162024,68628.0,68627.0,0.001638]
[1730611119889,0.85161419,68628.0,68627.0,0.001638]
[1730611120107,0.94128242,68628.0,68627.0,0.001638]
[1730611120340,0.93128273,68628.0,68627.0,0.001638]
[1730611120790,0.92028273,68628.0,68627.0,0.001638]
[1730611121045,0.93028273,68628.0,68627.0,0.001638]
[1730611121745,0.93928273,68628.0,68627.0,0.001638]
[1730611122432,0.90385697,68628.0,68627.0,0.001638]
[1730611122664,0.9392749,68628.0,68627.0,0.001638]
[1730611125892,0.93926413,68628.0,68627.0,0.001638]
[1730611129463,0.90385697,68628.0,68627.0,0.001638]
[1730611129697,0.93926817,68628.0,68627.0,0.001638]
[1730611131831,0.93026817,68628.0,68627.0,0.001638]
[1730611132058,0.94026817,68628.0,68627.0,0.001638]
[1730611132291,0.93026817,68628.0,68627.0,0.001638]
[1730611132500,0.92026817,68628.0,68627.0,0.001638]
[1730611132747,0.93126817,68628.0,68627.0,0.001638]
[1730611132966,0.94126817,68628.0,68627.0,0.001638]
[1730611133177,0.93026817,68628.0,68627.0,0.001638]
[1730611133603,0.94126817,68628.0,68627.0,0.001638]
[1730611136480,0.90585697,68628.0,68627.0,0.001638]
[1730611136763,0.94129417,68628.0,68627.0,0.001638]
[1730611137645,0.86262594,68628.0,68627.0,0.001638]
[1730611140087,0.86264002,68628.0,68627.0,0.001638]
[1730611140591,0.86264554,68628.0,68627.0,0.001638]
[1730611141039,0.82718874,68628.0,68627.0,0.001638]
[1730611141253,0.90585697,68628.0,68627.0,0.001638]
[1730611142367,0.94131996,68628.0,68627.0,0.001638]
[1730611143473,0.93031996,68628.0,68627.0,0.001638]
[1730611143703,0.93431996,68628.0,68627.0,0.001638]
[1730611144146,0.94831996,68628.0,68627.0,0.001638]
[1730611144636,0.86965173,68628.0,68627.0,0.001638]
[1730611146071,0.72382599,68628.0,68627.0,0.001638]
[1730611147216,0.72389308,68628.0,68627.0,0.001638]
[1730611152091,0.57318008,68628.0,68627.0,0.193353]
[1730611152956,0.54518008,68628.0,68627.0,0.276253]
[1730611155117,0.54518008,68628.0,68627.0,0.277253]
[1730611157593,0.52331541,68628.0,68627.0,0.277253]
[1730611157809,0.54511176,68628.0,68627.0,0.277253]
[1730611158459,0.52328914,68628.0,68627.0,0.277253]
[1730611158674,0.54510514,68628.0,68627.0,0.277253]
[1730611159104,0.52328914,68628.0,68627.0,0.277253]
[1730611161275,0.50965,68628.0,68627.0,0.277253]
[1730611161487,0.52328213,68628.0,68627.0,0.277253]
[1730611162121,0.52328063,68628.0,68627.0,0.277253]
[1730611164494,0.50965,68628.0,68627.0,0.277253]
[1730611164935,0.5232761,68628.0,68627.0,0.277253]
[1730611166021,0.52327414,68628.0,68627.0,0.277253]
[1730611168819,0.52327424,68628.0,68627.0,0.277253]
[1730611170363,0.52327424,68628.0,68627.0,0.148353]
[1730611170581,0.74311368,68628.0,68627.0,0.002638]
[1730611170806,0.74311361,68628.0,68627.0,0.002638]
[1730611171243,0.69078619,68628.0,68627.0,0.002638]
[1730611171463,0.69078619,68628.0,68627.0,0.001638]
[1730611171677,0.69078619,68628.0,68627.0,0.002638]
[1730611172583,0.67716195,68628.0,68627.0,0.002638]
[1730611172799,0.69078481,68628.0,68627.0,0.002638]
[1730611176301,0.69078481,68628.0,68627.0,0.001638]
[1730611176724,0.69478481,68628.0,68627.0,0.001638]
[1730611178723,0.83585659,68628.0,68627.0,0.001638]
[1730611180028,0.659363,68628.0,68627.0,0.001638]
[1730611180264,0.69482373,68628.0,68627.0,0.001638]
[1730611182204,1.13105723,68628.0,68627.0,0.001638]
[1730611182674,1.13305723,68628.0,68627.0,0.001638]
[1730611182889,1.13105723,68628.0,68627.0,0.001638]
[1730611183100,1.27688297,68628.0,68627.0,0.001638]
[1730611185069,1.19821474,68628.0,68627.0,0.001638]
[1730611187441,1.1981897,68628.0,68627.0,0.001638]
[1730611192454,1.11952147,68628.0,68627.0,0.001638]
[1730611192703,0.69979869,68628.0,68627.0,0.001638]
[1730611192925,0.54908569,68628.0,68627.0,0.001638]
[1730611193138,0.55408569,68628.0,68627.0,0.001638]
[1730611193369,0.54908569,68628.0,68627.0,0.001638]
[1730611194435,0.69479869,68628.0,68627.0,0.001638]
[1730611195581,0.54908569,68628.0,68627.0,0.001638]
[1730611196016,0.69479869,68628.0,68627.0,0.001638]
[1730611196441,0.54908569,68628.0,68627.0,0.001638]
[1730611197751,0.69479869,68628.0,68627.0,0.001638]
[1730611198206,0.69480001,68628.0,68627.0,0.001638]
[1730611198642,0.69480506,68628.0,68627.0,0.001638]
[1730611198856,0.54909206,68628.0,68627.0,0.001638]
[1730611199514,0.54909206,68628.0,68627.0,0.147353]
[1730611201152,0.54910239,68628.0,68627.0,0.147353]
[1730611203373,0.54910439,68628.0,68627.0,0.147353]
[1730611204039,0.54610439,68628.0,68627.0,0.147353]
[1730611204262,0.54610439,68628.0,68627.0,0.148353]
[1730611204486,0.5232863,68628.0,68627.0,0.195853]
[1730611204942,0.5232863,68628.0,68627.0,0.196853]
[1730611207458,0.5232863,68628.0,68627.0,0.34265004]
[1730611207676,0.50965,68628.0,68627.0,0.42045004]
[1730611210222,0.50965,68628.0,68627.0,0.4240794]
[1730611215269,0.50965,68628.0,68627.0,0.42045004]
[1730611215505,0.50965,68628.0,68627.0,0.149353]
[1730611216641,0.753128,68628.0,68627.0,0.003638]
[1730611216864,0.76674347,68628.0,68627.0,0.003638]
[1730611217555,0.76674347,68628.0,68627.0,0.002638]
[1730611217782,0.76674347,68628.0,68627.0,0.001638]
[1730611218013,0.76674347,68628.0,68627.0,0.003638]
[1730611218706,0.76674347,68628.0,68627.0,0.002638]
[1730611219151,0.76674347,68628.0,68627.0,0.003638]
[1730611219604,0.76675352,68628.0,68627.0,0.003638]
[1730611220490,0.78855861,68628.0,68627.0,0.003638]
[1730611223234,0.78857835,68628.0,68627.0,0.003638]
[1730611223666,0.59190035,68628.0,68627.0,0.003638]
[1730611224343,0.73761335,68628.0,68627.0,0.003638]
[1730611229347,0.74261335,68628.0,68627.0,0.003638]
[1730611229587,1.12244685,68628.0,68627.0,0.003638]
[1730611229813,1.04377862,68628.0,68627.0,0.003638]
[1730611230034,1.18960436,68628.0,68627.0,0.003638]
[1730611230249,1.18960436,68628.0,68627.0,0.002638]
[1730611230677,1.18960436,68628.0,68627.0,0.003638]
[1730611230905,1.18960436,68628.0,68627.0,0.002638]
[1730611231328,1.19060436,68628.0,68627.0,0.002638]
[1730611231567,1.18960436,68628.0,68627.0,0.001638]
[1730611231783,1.18960436,68628.0,68627.0,0.002638]
[1730611232006,1.19160436,68628.0,68627.0,0.002638]
[1730611232483,1.19160436,68628.0,68627.0,0.001638]
[1730611232706,1.19260436,68628.0,68627.0,0.001638]
[1730611233137,1.18960436,68628.0,68627.0,0.001638]
[1730611233582,1.19660436,68628.0,68627.0,0.001638]
[1730611235946,1.19460436,68628.0,68627.0,0.001638]
[1730611236161,1.04877862,68628.0,68627.0,0.001638]
[1730611236439,1.02696302,68628.0,68627.0,0.001638]
[1730611239226,0.94829479,68628.0,68627.0,0.001638]
[1730611239909,1.02696302,68628.0,68627.0,0.001638]
[1730611240823,1.02693066,68628.0,68627.0,0.001638]
[1730611241047,1.01332827,68628.0,68627.0,0.001638]
[1730611241259,1.17275623,68628.0,68627.0,0.001638]
[1730611242371,1.25342446,68628.0,68627.0,0.001638]
[1730611244387,1.29694313,68628.0,68627.0,0.001638]
[1730611245511,1.30194313,68628.0,68627.0,0.001638]
[1730611245727,1.25842446,68628.0,68627.0,0.001638]
[1730611246178,1.32374334,68628.0,68627.0,0.001638]
[1730611246407,1.32368846,68628.0,68627.0,0.001638]
[1730611246667,1.25842446,68628.0,68627.0,0.001638]
[1730611247335,1.52092655,68628.0,68627.0,0.001638]
[1730611247552,1.41216804,68628.0,68627.0,0.001638]
[1730611247753,1.52092655,68628.0,68627.0,0.001638]
[1730611247974,1.51592655,68628.0,68627.0,0.001638]
[1730611248183,1.51892655,68628.0,68627.0,0.001638]
[1730611248385,1.40916804,68628.0,68627.0,0.001638]
[1730611248804,1.42116804,68628.0,68627.0,0.001638]
[1730611249264,1.52992655,68628.0,68627.0,0.001638]
[1730611249463,1.70859478,68628.0,68627.0,0.001638]
[1730611249665,1.52116804,68628.0,68627.0,0.001638]
[1730611250321,1.64382405,68628.0,68627.0,0.001638]
[1730611251238,1.64381594,68628.0,68627.0,0.001638]
[1730611251962,1.53515993,68628.0,68627.0,0.001638]
[1730611252180,1.64381393,68628.0,68627.0,0.001638]
[1730611252398,1.53515792,68628.0,68627.0,0.001638]
[1730611255732,1.53515554,68628.0,68627.0,0.001638]
[1730611256603,1.53455912,68628.0,68627.0,0.001638]
[1730611257727,1.62142398,68628.0,68627.0,0.001638]
[1730611257951,1.53455912,68628.0,68627.0,0.001638]
[1730611258387,1.53456235,68628.0,68627.0,0.001638]
[1730611258821,1.55631108,68628.0,68627.0,0.001638]
[1730611260423,1.66489149,68628.0,68627.0,0.001638]
[1730611260848,1.66521383,68628.0,68627.0,0.001638]
[1730611261705,1.66522401,68628.0,68627.0,0.001638]
[1730611262374,1.6652988,68628.0,68627.0,0.001638]
[1730611262585,1.55661808,68628.0,68627.0,0.001638]
[1730611263885,1.52126622,68628.0,68627.0,0.001638]
[1730611264341,1.52134099,68628.0,68627.0,0.001638]
[1730611265142,1.55670651,68628.0,68627.0,0.001638]
[1730611266029,1.66538647,68628.0,68627.0,0.001638]
[1730611266455,1.55670864,68628.0,68627.0,0.001638]
[1730611267433,0.257717,68626.0,68625.0,0.001638]
[1730611267654,1.20218573,68626.0,68625.0,0.001638]
[1730611268883,1.20165583,68626.0,68625.0,0.001638]
[1730611269520,1.21565583,68626.0,68625.0,0.001638]
[1730611270287,1.20165583,68626.0,68625.0,0.001638]
[1730611270524,1.36148157,68626.0,68625.0,0.001638]
[1730611270731,1.34748157,68626.0,68625.0,0.001638]
[1730611271160,1.36148157,68626.0,68625.0,0.001638]
[1730611271385,0.012,68625.0,68624.0,0.001638]
[1730611271590,0.53695946,68623.0,68622.0,1e-06]
[1730611271816,1.35899829,68623.0,68622.0,1e-06]
[1730611272022,0.012,68619.0,68618.0,1e-06]
[1730611272405,1.50163225,68619.0,68618.0,1e-06]
[1730611272848,1.50165207,68619.0,68618.0,1e-06]
[1730611273525,1.50200862,68619.0,68618.0,1e-06]
[1730611273720,1.51600862,68619.0,68618.0,1e-06]
[1730611274144,1.58880862,68619.0,68618.0,1e-06]
[1730611274608,1.60280862,68619.0,68618.0,1e-06]
[1730611275086,0.33640423,68617.0,68616.0,0.001648]
[1730611275295,1.28071943,68617.0,68616.0,1e-06]
[1730611275527,1.2020512,68617.0,68616.0,1e-06]